Workbook

Sheet Sheet1 (hidden)
A1: Particulars / SI | B1: Rs. 10,000 | C1: Rs. 20,000 | D1: Rs. 25,000 | E1: Rs. 50,000 | F1: Rs. 75,000 | G1: Rs. 1 lakh | H1: Rs. 1.5 lakhs | I1: Rs. 2 lakhs | J1: Rs. 2.5 lakhs | K1: Rs. 3 lakhs | L1: Rs. 5 lakhs | M1: Rs. 10 lakhs | N1: Rs. 15 lakhs | O1: Rs. 20 lakhs | P1: Rs. 25 lakhs | Q1: Rs. 35 lakhs | R1: Rs. 50 lakhs | S1: Rs. 75 lakhs | T1: Rs. 1 crore | U1: Rs. 1.5 crores | V1: Rs. 2 crores | W1: Rs. 2.5 crores | X1: Rs. 3 crores | Y1: Rs. 3.5 crores | Z1: Rs. 4 crores | AA1: Rs. 4.5 crores | AB1: Rs. 5 crores
A2: 1 | B2: 2 | C2: 3 | D2: 4 | E2: 5 | F2: 6 | G2: 7 | H2: 8 | I2: 9 | J2: 10 | K2: 11 | L2: 12 | M2: 13 | N2: 14 | O2: 15 | P2: 16 | Q2: 17 | R2: 18 | S2: 19 | T2: 20 | U2: 21 | V2: 22 | W2: 23 | X2: 24 | Y2: 25 | Z2: 26 | AA2: 27 | AB2: 28
A3: Identity Theft Cover | B3: 0.755 | C3: 0.755 | D3: 0.755 | E3: 0.755 | F3: 0.755 | G3: 0.755 | H3: 0.566 | I3: 0.453 | J3: 0.396 | K3: 0.34 | L3: 0.245 | M3: 0.17 | N3: 0.162 | O3: 0.151 | P3: 0.136 | Q3: 0.106 | R3: 0.076 | S3: 0.064 | T3: 0.055 | U3: 0.047 | V3: 0.04 | W3: 0.036 | X3: 0.032 | Y3: 0.03 | Z3: 0.028 | AA3: 0.026 | AB3: 0.026
A4: IT Theft/ Theft of Funds/ Financial Loss Cover | B4: 3.728 | C4: 3.728 | D4: 3.728 | E4: 3.728 | F4: 3.728 | G4: 3.728 | H4: 2.796 | I4: 2.237 | J4: 1.957 | K4: 1.678 | L4: 1.212 | M4: 0.839 | N4: 0.802 | O4: 0.746 | P4: 0.671 | Q4: 0.522 | R4: 0.373 | S4: 0.317 | T4: 0.27 | U4: 0.233 | V4: 0.196 | W4: 0.177 | X4: 0.158 | Y4: 0.149 | Z4: 0.14 | AA4: 0.13 | AB4: 0.127
A5: E-mail Spoofing Cover | B5: 0.635 | C5: 0.635 | D5: 0.635 | E5: 0.635 | F5: 0.635 | G5: 0.635 | H5: 0.476 | I5: 0.381 | J5: 0.333 | K5: 0.286 | L5: 0.206 | M5: 0.143 | N5: 0.137 | O5: 0.127 | P5: 0.114 | Q5: 0.089 | R5: 0.064 | S5: 0.054 | T5: 0.046 | U5: 0.04 | V5: 0.033 | W5: 0.03 | X5: 0.027 | Y5: 0.025 | Z5: 0.024 | AA5: 0.022 | AB5: 0.022
A6: Cyberbullying Cover | B6: 1.365 | C6: 1.365 | D6: 1.365 | E6: 1.365 | F6: 1.365 | G6: 1.365 | H6: 1.024 | I6: 0.819 | J6: 0.716 | K6: 0.614 | L6: 0.444 | M6: 0.307 | N6: 0.293 | O6: 0.273 | P6: 0.246 | Q6: 0.191 | R6: 0.136 | S6: 0.116 | T6: 0.099 | U6: 0.085 | V6: 0.072 | W6: 0.065 | X6: 0.058 | Y6: 0.055 | Z6: 0.051 | AA6: 0.048 | AB6: 0.046
A7: Malware Cover | B7: 1.579 | C7: 1.579 | D7: 1.579 | E7: 1.579 | F7: 1.579 | G7: 1.579 | H7: 1.184 | I7: 0.947 | J7: 0.829 | K7: 0.711 | L7: 0.513 | M7: 0.355 | N7: 0.339 | O7: 0.316 | P7: 0.284 | Q7: 0.221 | R7: 0.158 | S7: 0.134 | T7: 0.114 | U7: 0.099 | V7: 0.083 | W7: 0.075 | X7: 0.067 | Y7: 0.063 | Z7: 0.059 | AA7: 0.055 | AB7: 0.054
A8: Media Liability Claims Cover | B8: 1.414 | C8: 1.414 | D8: 1.414 | E8: 1.414 | F8: 1.414 | G8: 1.414 | H8: 1.061 | I8: 0.849 | J8: 0.743 | K8: 0.636 | L8: 0.46 | M8: 0.318 | N8: 0.304 | O8: 0.283 | P8: 0.255 | Q8: 0.198 | R8: 0.141 | S8: 0.12 | T8: 0.103 | U8: 0.088 | V8: 0.074 | W8: 0.067 | X8: 0.06 | Y8: 0.057 | Z8: 0.053 | AA8: 0.05 | AB8: 0.048
A9: Cyber Extortion Cover | B9: 1.491 | C9: 1.491 | D9: 1.491 | E9: 1.491 | F9: 1.491 | G9: 1.491 | H9: 1.118 | I9: 0.894 | J9: 0.783 | K9: 0.671 | L9: 0.485 | M9: 0.335 | N9: 0.321 | O9: 0.298 | P9: 0.268 | Q9: 0.209 | R9: 0.149 | S9: 0.127 | T9: 0.108 | U9: 0.093 | V9: 0.078 | W9: 0.071 | X9: 0.063 | Y9: 0.06 | Z9: 0.056 | AA9: 0.052 | AB9: 0.051
A10: Privacy Breach and Data Breach First Party Cover | B10: 1.323 | C10: 1.323 | D10: 1.323 | E10: 1.323 | F10: 1.323 | G10: 1.323 | H10: 0.992 | I10: 0.794 | J10: 0.694 | K10: 0.595 | L10: 0.43 | M10: 0.298 | N10: 0.284 | O10: 0.265 | P10: 0.238 | Q10: 0.185 | R10: 0.132 | S10: 0.112 | T10: 0.096 | U10: 0.083 | V10: 0.069 | W10: 0.063 | X10: 0.056 | Y10: 0.053 | Z10: 0.05 | AA10: 0.046 | AB10: 0.045
A11: Privacy Breach and Data Breach (of Third Party) Liability Cover | B11: 1.323 | C11: 1.323 | D11: 1.323 | E11: 1.323 | F11: 1.323 | G11: 1.323 | H11: 0.992 | I11: 0.794 | J11: 0.694 | K11: 0.595 | L11: 0.43 | M11: 0.298 | N11: 0.284 | O11: 0.265 | P11: 0.238 | Q11: 0.185 | R11: 0.132 | S11: 0.112 | T11: 0.096 | U11: 0.083 | V11: 0.069 | W11: 0.063 | X11: 0.056 | Y11: 0.053 | Z11: 0.05 | AA11: 0.046 | AB11: 0.045
A12: Counselling Services | B12: 0.681 | C12: 0.681 | D12: 0.681 | E12: 0.681 | F12: 0.681 | G12: 0.681 | H12: 0.51 | I12: 0.408 | J12: 0.357 | K12: 0.306 | L12: 0.221 | M12: 0.153 | N12: 0.146 | O12: 0.136 | P12: 0.123 | Q12: 0.095 | R12: 0.068 | S12: 0.058 | T12: 0.049 | U12: 0.043 | V12: 0.036 | W12: 0.032 | X12: 0.029 | Y12: 0.027 | Z12: 0.026 | AA12: 0.024 | AB12: 0.023
A13: IT Consultant Services Cover | B13: 0.681 | C13: 0.681 | D13: 0.681 | E13: 0.681 | F13: 0.681 | G13: 0.681 | H13: 0.51 | I13: 0.408 | J13: 0.357 | K13: 0.306 | L13: 0.221 | M13: 0.153 | N13: 0.146 | O13: 0.136 | P13: 0.123 | Q13: 0.095 | R13: 0.068 | S13: 0.058 | T13: 0.049 | U13: 0.043 | V13: 0.036 | W13: 0.032 | X13: 0.029 | Y13: 0.027 | Z13: 0.026 | AA13: 0.024 | AB13: 0.023
A14: Online Sales Cover | B14: 0.948 | C14: 0.948 | D14: 0.948 | E14: 0.948 | F14: 0.948 | G14: 0.948 | H14: 0.711 | I14: 0.569 | J14: 0.498 | K14: 0.427 | L14: 0.308 | M14: 0.213 | N14: 0.204 | O14: 0.19 | P14: 0.171 | Q14: 0.133 | R14: 0.095 | S14: 0.081 | T14: 0.069 | U14: 0.059 | V14: 0.05 | W14: 0.045 | X14: 0.04 | Y14: 0.038 | Z14: 0.036 | AA14: 0.033 | AB14: 0.032
A15: Online Shopping Cover | B15: 6.401 | C15: 6.401 | D15: 6.401 | E15: 6.401 | F15: 6.401 | G15: 6.401 | H15: 4.801 | I15: 3.841 | J15: 3.361 | K15: 2.881 | L15: 2.08 | M15: 1.44 | N15: 1.376 | O15: 1.28 | P15: 1.152 | Q15: 0.896 | R15: 0.64 | S15: 0.544 | T15: 0.464 | U15: 0.4 | V15: 0.336 | W15: 0.304 | X15: 0.272 | Y15: 0.256 | Z15: 0.24 | AA15: 0.224 | AB15: 0.218
A16: Replacement of Hardware Cover | B16: 2.902 | C16: 2.902 | D16: 2.902 | E16: 2.902 | F16: 2.902 | G16: 2.902 | H16: 2.176 | I16: 1.741 | J16: 1.523 | K16: 1.306 | L16: 0.943 | M16: 0.653 | N16: 0.624 | O16: 0.58 | P16: 0.522 | Q16: 0.406 | R16: 0.29 | S16: 0.247 | T16: 0.21 | U16: 0.181 | V16: 0.152 | W16: 0.138 | X16: 0.123 | Y16: 0.116 | Z16: 0.109 | AA16: 0.102 | AB16: 0.099
A17: Consequential Loss (Theft of Funds) Cover | B17: 0.373 | C17: 0.373 | D17: 0.373 | E17: 0.373 | F17: 0.373 | G17: 0.373 | H17: 0.28 | I17: 0.224 | J17: 0.196 | K17: 0.168 | L17: 0.121 | M17: 0.084 | N17: 0.08 | O17: 0.075 | P17: 0.067 | Q17: 0.052 | R17: 0.037 | S17: 0.032 | T17: 0.027 | U17: 0.023 | V17: 0.02 | W17: 0.018 | X17: 0.016 | Y17: 0.015 | Z17: 0.014 | AA17: 0.013 | AB17: 0.013
A18: Liability arising due to Underage Dependent Children | B18: 0.746 | C18: 0.746 | D18: 0.746 | E18: 0.746 | F18: 0.746 | G18: 0.746 | H18: 0.56 | I18: 0.448 | J18: 0.392 | K18: 0.336 | L18: 0.243 | M18: 0.168 | N18: 0.16 | O18: 0.149 | P18: 0.134 | Q18: 0.104 | R18: 0.075 | S18: 0.063 | T18: 0.054 | U18: 0.047 | V18: 0.039 | W18: 0.035 | X18: 0.032 | Y18: 0.03 | Z18: 0.028 | AA18: 0.026 | AB18: 0.025
A19: Network Security Liability | B19: 1.077 | C19: 1.077 | D19: 1.077 | E19: 1.077 | F19: 1.077 | G19: 1.077 | H19: 0.808 | I19: 0.646 | J19: 0.565 | K19: 0.485 | L19: 0.35 | M19: 0.242 | N19: 0.232 | O19: 0.215 | P19: 0.194 | Q19: 0.151 | R19: 0.108 | S19: 0.092 | T19: 0.078 | U19: 0.067 | V19: 0.057 | W19: 0.051 | X19: 0.046 | Y19: 0.043 | Z19: 0.04 | AA19: 0.038 | AB19: 0.037
A20: Smart Home Cover | B20: 0.952 | C20: 0.952 | D20: 0.952 | E20: 0.952 | F20: 0.952 | G20: 0.952 | H20: 0.714 | I20: 0.571 | J20: 0.5 | K20: 0.428 | L20: 0.309 | M20: 0.214 | N20: 0.205 | O20: 0.19 | P20: 0.171 | Q20: 0.133 | R20: 0.095 | S20: 0.081 | T20: 0.069 | U20: 0.059 | V20: 0.05 | W20: 0.045 | X20: 0.04 | Y20: 0.038 | Z20: 0.036 | AA20: 0.033 | AB20: 0.032
A21: Unauthorized Physical transaction | B21: 8.333 | C21: 8.333 | D21: 8.333 | E21: 8.333 | F21: 8.333 | G21: 8.333 | H21: 6.25 | I21: 5 | J21: 4.375 | K21: 3.75 | L21: 2.708 | M21: 1.875 | N21: 1.792 | O21: 1.667 | P21: 1.5 | Q21: 1.167 | R21: 0.833 | S21: 0.708 | T21: 0.604 | U21: 0.521 | V21: 0.438 | W21: 0.396 | X21: 0.354 | Y21: 0.333 | Z21: 0.313 | AA21: 0.292 | AB21: 0.283
A23: Yes
A24: No
A27: Choose your Limit of Liability | B27: 0
A28: Rs. 10,000 | B28: 10000
A29: Rs. 20,000 | B29: 20000
A30: Rs. 25,000 | B30: 25000
A31: Rs. 50,000 | B31: 50000
A32: Rs. 75,000 | B32: 75000
A33: Rs. 1 lakh | B33: =1*10^5 -> 100000
A34: Rs. 1.5 lakhs | B34: =1.5*10^5 -> 150000
A35: Rs. 2 lakhs | B35: =2*10^5 -> 200000
A36: Rs. 2.5 lakhs | B36: =2.5*10^5 -> 250000
A37: Rs. 3 lakhs | B37: =3*10^5 -> 300000
A38: Rs. 5 lakhs | B38: =5*10^5 -> 500000
A39: Rs. 10 lakhs | B39: =10*10^5 -> 1000000
A40: Rs. 15 lakhs | B40: =15*10^5 -> 1500000
A41: Rs. 20 lakhs | B41: =20*10^5 -> 2000000
A42: Rs. 25 lakhs | B42: =25*10^5 -> 2500000
A43: Rs. 35 lakhs | B43: =35*10^5 -> 3500000
A44: Rs. 50 lakhs | B44: =50*10^5 -> 5000000
A45: Rs. 75 lakhs | B45: =75*10^5 -> 7500000
A46: Rs. 1 crore | B46: =1*10^7 -> 10000000
A47: Rs. 1.5 crores | B47: =1.5*10^7 -> 15000000
A48: Rs. 2 crores | B48: =2*10^7 -> 20000000
A49: Rs. 2.5 crores | B49: =2.5*10^7 -> 25000000
A50: Rs. 3 crores | B50: =3*10^7 -> 30000000
A51: Rs. 3.5 crores | B51: =3.5*10^7 -> 35000000
A52: Rs. 4 crores | B52: =4*10^7 -> 40000000
A53: Rs. 4.5 crores | B53: =4.5*10^7 -> 45000000
A54: Rs. 5 crores | B54: =5*10^7 -> 50000000

Sheet Premium Calculator
A4: Cyber Protect Group Insurance Policy - Premium Calculator
E6: Choose your Limit of Liability (LOL)
A9: Choose your Cover | B9: Identity Theft Cover
A10: Select Yes or No
A12: Choose your Cover
A13: Select Yes or No
B15: Choose your Cover
B16: Select Yes or No
E18: Total Premium for the above selection
E19: =Sheet2!AF110 -> 
B22: Note: The above premium is not inclusive of GST. For final rates and varied options, please contact an authorised Magma-HDI representative.

Sheet Sheet2 (hidden)
AC106: =IF(AND('Premium Calculator'!B10="Yes",NOT(ISNA(MATCH('Premium Calculator'!B9,Sheet1!$A$3:$A$21,0)))),VLOOKUP('Premium Calculator'!B9,Sheet1!$A$1:$AB$21,HLOOKUP('Premium Calculator'!$E$7,Sheet1!$A$1:$AB$2,2,0),0))*VLOOKUP('Premium Calculator'!$E$7,Sheet1!$A$27:$B$54,2,0)/1000 ->  | AD106: =IF(AND('Premium Calculator'!C10="Yes",NOT(ISNA(MATCH('Premium Calculator'!C9,Sheet1!$A$3:$A$21,0)))),VLOOKUP('Premium Calculator'!C9,Sheet1!$A$1:$AB$21,HLOOKUP('Premium Calculator'!$E$7,Sheet1!$A$1:$AB$2,2,0),0))*VLOOKUP('Premium Calculator'!$E$7,Sheet1!$A$27:$B$54,2,0)/1000 ->  | AE106: =IF(AND('Premium Calculator'!D10="Yes",NOT(ISNA(MATCH('Premium Calculator'!D9,Sheet1!$A$3:$A$21,0)))),VLOOKUP('Premium Calculator'!D9,Sheet1!$A$1:$AB$21,HLOOKUP('Premium Calculator'!$E$7,Sheet1!$A$1:$AB$2,2,0),0))*VLOOKUP('Premium Calculator'!$E$7,Sheet1!$A$27:$B$54,2,0)/1000 ->  | AF106: =IF(AND('Premium Calculator'!E10="Yes",NOT(ISNA(MATCH('Premium Calculator'!E9,Sheet1!$A$3:$A$21,0)))),VLOOKUP('Premium Calculator'!E9,Sheet1!$A$1:$AB$21,HLOOKUP('Premium Calculator'!$E$7,Sheet1!$A$1:$AB$2,2,0),0))*VLOOKUP('Premium Calculator'!$E$7,Sheet1!$A$27:$B$54,2,0)/1000 ->  | AG106: =IF(AND('Premium Calculator'!F10="Yes",NOT(ISNA(MATCH('Premium Calculator'!F9,Sheet1!$A$3:$A$21,0)))),VLOOKUP('Premium Calculator'!F9,Sheet1!$A$1:$AB$21,HLOOKUP('Premium Calculator'!$E$7,Sheet1!$A$1:$AB$2,2,0),0))*VLOOKUP('Premium Calculator'!$E$7,Sheet1!$A$27:$B$54,2,0)/1000 ->  | AH106: =IF(AND('Premium Calculator'!G10="Yes",NOT(ISNA(MATCH('Premium Calculator'!G9,Sheet1!$A$3:$A$21,0)))),VLOOKUP('Premium Calculator'!G9,Sheet1!$A$1:$AB$21,HLOOKUP('Premium Calculator'!$E$7,Sheet1!$A$1:$AB$2,2,0),0))*VLOOKUP('Premium Calculator'!$E$7,Sheet1!$A$27:$B$54,2,0)/1000 ->  | AI106: =IF(AND('Premium Calculator'!H10="Yes",NOT(ISNA(MATCH('Premium Calculator'!H9,Sheet1!$A$3:$A$21,0)))),VLOOKUP('Premium Calculator'!H9,Sheet1!$A$1:$AB$21,HLOOKUP('Premium Calculator'!$E$7,Sheet1!$A$1:$AB$2,2,0),0))*VLOOKUP('Premium Calculator'!$E$7,Sheet1!$A$27:$B$54,2,0)/1000 -> 
AC107: =IF(AND('Premium Calculator'!B13="Yes",NOT(ISNA(MATCH('Premium Calculator'!B12,Sheet1!$A$3:$A$21,0)))),VLOOKUP('Premium Calculator'!B12,Sheet1!$A$1:$AB$21,HLOOKUP('Premium Calculator'!$E$7,Sheet1!$A$1:$AB$2,2,0),0))*VLOOKUP('Premium Calculator'!$E$7,Sheet1!$A$27:$B$54,2,0)/1000 ->  | AD107: =IF(AND('Premium Calculator'!C13="Yes",NOT(ISNA(MATCH('Premium Calculator'!C12,Sheet1!$A$3:$A$21,0)))),VLOOKUP('Premium Calculator'!C12,Sheet1!$A$1:$AB$21,HLOOKUP('Premium Calculator'!$E$7,Sheet1!$A$1:$AB$2,2,0),0))*VLOOKUP('Premium Calculator'!$E$7,Sheet1!$A$27:$B$54,2,0)/1000 ->  | AE107: =IF(AND('Premium Calculator'!D13="Yes",NOT(ISNA(MATCH('Premium Calculator'!D12,Sheet1!$A$3:$A$21,0)))),VLOOKUP('Premium Calculator'!D12,Sheet1!$A$1:$AB$21,HLOOKUP('Premium Calculator'!$E$7,Sheet1!$A$1:$AB$2,2,0),0))*VLOOKUP('Premium Calculator'!$E$7,Sheet1!$A$27:$B$54,2,0)/1000 ->  | AF107: =IF(AND('Premium Calculator'!E13="Yes",NOT(ISNA(MATCH('Premium Calculator'!E12,Sheet1!$A$3:$A$21,0)))),VLOOKUP('Premium Calculator'!E12,Sheet1!$A$1:$AB$21,HLOOKUP('Premium Calculator'!$E$7,Sheet1!$A$1:$AB$2,2,0),0))*VLOOKUP('Premium Calculator'!$E$7,Sheet1!$A$27:$B$54,2,0)/1000 ->  | AG107: =IF(AND('Premium Calculator'!F13="Yes",NOT(ISNA(MATCH('Premium Calculator'!F12,Sheet1!$A$3:$A$21,0)))),VLOOKUP('Premium Calculator'!F12,Sheet1!$A$1:$AB$21,HLOOKUP('Premium Calculator'!$E$7,Sheet1!$A$1:$AB$2,2,0),0))*VLOOKUP('Premium Calculator'!$E$7,Sheet1!$A$27:$B$54,2,0)/1000 ->  | AH107: =IF(AND('Premium Calculator'!G13="Yes",NOT(ISNA(MATCH('Premium Calculator'!G12,Sheet1!$A$3:$A$21,0)))),VLOOKUP('Premium Calculator'!G12,Sheet1!$A$1:$AB$21,HLOOKUP('Premium Calculator'!$E$7,Sheet1!$A$1:$AB$2,2,0),0))*VLOOKUP('Premium Calculator'!$E$7,Sheet1!$A$27:$B$54,2,0)/1000 ->  | AI107: =IF(AND('Premium Calculator'!H13="Yes",NOT(ISNA(MATCH('Premium Calculator'!H12,Sheet1!$A$3:$A$21,0)))),VLOOKUP('Premium Calculator'!H12,Sheet1!$A$1:$AB$21,HLOOKUP('Premium Calculator'!$E$7,Sheet1!$A$1:$AB$2,2,0),0))*VLOOKUP('Premium Calculator'!$E$7,Sheet1!$A$27:$B$54,2,0)/1000 -> 
AC108: =IF(AND('Premium Calculator'!B16="Yes",NOT(ISNA(MATCH('Premium Calculator'!B15,Sheet1!$A$3:$A$21,0)))),VLOOKUP('Premium Calculator'!B15,Sheet1!$A$1:$AB$21,HLOOKUP('Premium Calculator'!$E$7,Sheet1!$A$1:$AB$2,2,0),0))*VLOOKUP('Premium Calculator'!$E$7,Sheet1!$A$27:$B$54,2,0)/1000 ->  | AD108: =IF(AND('Premium Calculator'!C16="Yes",NOT(ISNA(MATCH('Premium Calculator'!C15,Sheet1!$A$3:$A$21,0)))),VLOOKUP('Premium Calculator'!C15,Sheet1!$A$1:$AB$21,HLOOKUP('Premium Calculator'!$E$7,Sheet1!$A$1:$AB$2,2,0),0))*VLOOKUP('Premium Calculator'!$E$7,Sheet1!$A$27:$B$54,2,0)/1000 ->  | AE108: =IF(AND('Premium Calculator'!D16="Yes",NOT(ISNA(MATCH('Premium Calculator'!D15,Sheet1!$A$3:$A$21,0)))),VLOOKUP('Premium Calculator'!D15,Sheet1!$A$1:$AB$21,HLOOKUP('Premium Calculator'!$E$7,Sheet1!$A$1:$AB$2,2,0),0))*VLOOKUP('Premium Calculator'!$E$7,Sheet1!$A$27:$B$54,2,0)/1000 ->  | AF108: =IF(AND('Premium Calculator'!E16="Yes",NOT(ISNA(MATCH('Premium Calculator'!E15,Sheet1!$A$3:$A$21,0)))),VLOOKUP('Premium Calculator'!E15,Sheet1!$A$1:$AB$21,HLOOKUP('Premium Calculator'!$E$7,Sheet1!$A$1:$AB$2,2,0),0))*VLOOKUP('Premium Calculator'!$E$7,Sheet1!$A$27:$B$54,2,0)/1000 ->  | AG108: =IF(AND('Premium Calculator'!F16="Yes",NOT(ISNA(MATCH('Premium Calculator'!F15,Sheet1!$A$3:$A$21,0)))),VLOOKUP('Premium Calculator'!F15,Sheet1!$A$1:$AB$21,HLOOKUP('Premium Calculator'!$E$7,Sheet1!$A$1:$AB$2,2,0),0))*VLOOKUP('Premium Calculator'!$E$7,Sheet1!$A$27:$B$54,2,0)/1000 ->  | AH108: =IF(AND('Premium Calculator'!G16="Yes",NOT(ISNA(MATCH('Premium Calculator'!G15,Sheet1!$A$3:$A$21,0)))),VLOOKUP('Premium Calculator'!G15,Sheet1!$A$1:$AB$21,HLOOKUP('Premium Calculator'!$E$7,Sheet1!$A$1:$AB$2,2,0),0))*VLOOKUP('Premium Calculator'!$E$7,Sheet1!$A$27:$B$54,2,0)/1000 ->  | AI108: =IF(AND('Premium Calculator'!H16="Yes",NOT(ISNA(MATCH('Premium Calculator'!H15,Sheet1!$A$3:$A$21,0)))),VLOOKUP('Premium Calculator'!H15,Sheet1!$A$1:$AB$21,HLOOKUP('Premium Calculator'!$E$7,Sheet1!$A$1:$AB$2,2,0),0))*VLOOKUP('Premium Calculator'!$E$7,Sheet1!$A$27:$B$54,2,0)/1000 -> 
AF110: =IF(ISBLANK('Premium Calculator'!$E$7)," ",ROUND(SUM(AC106:AI108),0)) -> 
